{"text_format":"1","workbook":"xlsx","n_sheets":3,"sheets":["ورقة1","ورقة2","ورقة2 (2)"],"not_rendered":{"charts":0,"images":0,"macros":0,"external_links":0,"defined_names":0,"comments":0,"pivot_tables":0},"unopened":[],"bounds":{"document_bytes":16777216,"sheet_cells":100000,"rows_first":2000,"rows_last":500,"rows_between":2000,"halvings":0,"cell_chars":16384,"cell_head_chars":4096},"cells_cut":0,"cells_raw":0,"read":"whole","date_system":"1900"}

{"sheet":"ورقة1","index":0,"n_rows":0,"n_cols":0,"rows_kept":0,"cut":false,"hidden":false,"merged":[]}

{"sheet":"ورقة2","index":1,"n_rows":21,"n_cols":10,"rows_kept":21,"cut":false,"hidden":false,"merged":[[1,2,1,3],[2,2,2,3],[0,9,16,11],[7,5,7,6],[18,5,18,6],[18,7,18,8],[6,6,6,8]]}
[null,null,null,null,null,null,null,null,null,"السلام عليكم ورحمة الله وبركاته الى منتدى اوفيسنا رواده ومبدعيه نرجو عمل معادلة تقوم بتوزيع المبالغ بناء على الخلية E3 ويقوم بتوزيعها على العمود I فمثلا كتبت مبلغ 126,75يقوم بتوزيع المبلغ امام المائة يضع 100 وامام العشرون يضع 20 واما الخمسة يضع 5 وامام الجنيه يضع جنيه وامام النصف جنية يضع 50 وامام الربع جنيه يضع 25 قرش وامام ومثلا لو وضعنا 1000 جنيه يضعها فى خانة المائتان 200 وفى الخانة العدد يكتب 5 وامام حضراتكم التوزيعه كنموذج للحل وشكرا لحسن تعاملك معنا"]
["رقم المستند","التاريخ","اسم العميل",null,"المبلغ"]
[null,null,null,null,126.75]
[]
["إيصال توريد نقدية"]
["رقم المستند",null,"التاريخ اليوم",null,null,"رقم النماردة",null,"وقت الحركة"]
["فرع",null,null,null,null,"المبالغ المستلمة","بشرط قبول المستفيد"]
["رقم الفرع المنفذ",null,null,null,null,"فئة العملة",null,"العدد","المبلغ"]
["اسم العميل",null,null,null,null,"فئة أولى","مائتان"]
["رقم العميل",null,null,null,null,"فئة ثانية","مائة",1,100]
["اسم نوع الحساب",null,null,null,null,"فئة ثالثة","خمسون"]
["فرع الحساب",null,null,null,null,"فئة رابعة","عشرون",1,20]
["المبلغ بالأرقام",null,null,null,null,"فئة خامسة","عشرة"]
["المبلغ بالحروف",null,null,null,null,"فئة سادسة","خمسة",1,5]
["وذلك قيمة",null,null,null,null,"فئة سابعة","واحد جنية",1,1]
["اسم المودع",null,null,null,null,"فئة ثامنة","نصف جنية",1,50]
["التوقيع",null,null,null,null,"فئة تاسعة","ربع جنية",1,25]
["العنوان",null,null,null,null,"فئة عاشرة","قرش"]
["رقم موبيل",null,"رقم قومى",null,null,"اجمالى"]
[]
["لا يعتد بهذا الإيصال حال وجود كشط / شطب"]

{"sheet":"ورقة2 (2)","index":2,"n_rows":25,"n_cols":15,"rows_kept":25,"cut":false,"hidden":false,"merged":[[1,2,1,3],[2,2,2,3],[6,7,6,9],[7,5,7,7],[18,5,18,7],[18,8,18,9]]}
[]
["رقم المستند","التاريخ","اسم العميل",null,"المبلغ"]
[null,null,null,null,242.74]
[]
["إيصال توريد نقدية"]
["رقم المستند",null,"التاريخ اليوم",null,null,"رقم النماردة",null,null,"وقت الحركة"]
["فرع",null,null,null,null,"المبالغ المستلمة",null,"بشرط قبول المستفيد"]
["رقم الفرع المنفذ",null,null,null,null,"فئة العملة",null,null,"العدد","المبلغ"]
["اسم العميل",null,null,null,null,"فئة أولى",200,"مائتان",{"$f":"INT($E3/$G$9)","v":1},{"$f":"I9*G9","v":200}]
["رقم العميل",null,null,null,null,"فئة ثانية",100,"مائة",{"$f":"INT((($E3-($G$9*I9)))/$G$10)","v":0},{"$f":"I10*G10","v":0},null,null,null,1,"تم وضع عامود مساعد وهو عمود الـ G يمكنك اخفائة إذا أرد "]
["اسم نوع الحساب",null,null,null,null,"فئة ثالثة",50,"خمسون",{"$f":"INT(((($E3-(($G$9*I9)+($I$10*G10)))))/$G$11)","v":0},0,null,null,null,2,"تم وضع معادلا لكل من عمود العدد فسخرج الناتج مباشرة"]
["فرع الحساب",null,null,null,null,"فئة رابعة",20,"عشرون",{"$f":"INT(((($E3-(($G$9*I9)+($I$10*G10)+($G$11*I11)))))/$G$12)","v":2},40,null,null,null,3,"وأيضا تم وضع معادلات لعمود المبلغ ويظهر مباشرة"]
["المبلغ بالأرقام",null,null,null,null,"فئة خامسة",10,"عشرة",{"$f":"INT(((($E3-(($G$9*I9)+($I$10*G10)+($G$11*I11)+($G$12*I12)))))/$G$13)","v":0},0,null,null,null,4,"وتم عمل تنسيق شرطي يلون الفئات المراد صرفها مباشرة باللون الأصفر"]
["المبلغ بالحروف",null,null,null,null,"فئة سادسة",5,"خمسة",{"$f":"INT(((($E3-(($G$9*I9)+($I$10*G10)+($G$11*I11)+($G$12*I12)+($G$13*I13)))))/$G$14)","v":0},0,null,null,null,5,"يتم الجمع في الإجمالي "]
["وذلك قيمة",null,null,null,null,"فئة سابعة",1,"واحد جنية",{"$f":"INT(((($E3-(($G$9*I9)+($I$10*G10)+($G$11*I11)+($G$12*I12)+($G$13*I13)+($G$14*I14)))))/$G$15)","v":2},2,null,null,null,6,"وللتأكيد اذا كان الجمع مطابقا للمبلغ المكتوب في I3 يظهر ذلك في الخلية J25"]
["اسم المودع",null,null,null,null,"فئة ثامنة",0.5,"نصف جنية",{"$f":"INT(((($E3-(($G$9*I9)+($I$10*G10)+($G$11*I11)+($G$12*I12)+($G$13*I13)+($G$14*I14)+($G$15*I15)))))/$G$16)","v":1},0.5]
["التوقيع",null,null,null,null,"فئة تاسعة",0.25,"ربع جنية",{"$f":"INT(((($E3-(($G$9*I9)+($I$10*G10)+($G$11*I11)+($G$12*I12)+($G$13*I13)+($G$14*I14)+($G$15*I15)+($G$16*I16)))))/$G$17)","v":0},0]
["العنوان",null,null,null,null,"فئة عاشرة",0.01,"قرش",{"$f":"INT(((($E3-(($G$9*I9)+($I$10*G10)+($G$11*I11)+($G$12*I12)+($G$13*I13)+($G$14*I14)+($G$15*I15)+($G$16*I16)+($G$17*I17)))))/$G$18)","v":24},0.24]
["رقم موبيل",null,"رقم قومى",null,null,"اجمالى",null,null,{"$f":"SUM(J9:J18)","v":242.74}]
[]
["لا يعتد بهذا الإيصال حال وجود كشط / شطب"]
[]
[]
[]
[null,null,null,null,null,null,null,null,null,{"$f":"E3=I19","v":true}]